[Event "*** Titled Tuesday Blitz"]
[Site "Chess.com"]
[Date "2021.03.09"]
[Round "10"]
[White "katchesskat"]
[Black "BashirliSaadat"]
[Result "0-1"]
[WhiteElo "2304"]
[BlackElo "2206"]
[TimeControl "180+1"]
[EndTime "12:00:03 PST"]
[Termination "BashirliSaadat won by resignation"]

1. c4 {[%clk 0:03:00.9]} 1... e6 {[%clk 0:02:59.3]} 2. Nf3 {[%clk 0:02:57.2]}
2... d5 {[%clk 0:02:59.3]} 3. e3 {[%clk 0:02:57.1]} 3... Nf6 {[%clk 0:02:55.5]}
4. a3 {[%clk 0:02:50.9]} 4... c5 {[%clk 0:02:51.7]} 5. Qc2 {[%clk 0:02:49.5]}
5... Nc6 {[%clk 0:02:50.6]} 6. d3 {[%clk 0:02:45.5]} 6... Bd6 {[%clk 0:02:45]}
7. Nbd2 {[%clk 0:02:44.1]} 7... O-O {[%clk 0:02:43.9]} 8. Be2 {[%clk 0:02:39.9]}
8... a6 {[%clk 0:02:39.9]} 9. b3 {[%clk 0:02:28.1]} 9... b5 {[%clk 0:02:38]} 10.
Bb2 {[%clk 0:02:24.3]} 10... Re8 {[%clk 0:02:33.6]} 11. O-O {[%clk 0:02:16.4]}
11... Rb8 {[%clk 0:02:29.5]} 12. h3 {[%clk 0:01:55.9]} 12... b4 {[%clk
0:02:18.9]} 13. a4 {[%clk 0:01:44.1]} 13... a5 {[%clk 0:02:16.9]} 14. Rfe1
{[%clk 0:01:42]} 14... Ba6 {[%clk 0:02:15.5]} 15. Rad1 {[%clk 0:01:39]} 15...
Qc7 {[%clk 0:02:11.6]} 16. Rc1 {[%clk 0:01:27.9]} 16... Nd7 {[%clk 0:02:02.8]}
17. d4 {[%clk 0:00:59.3]} 17... Bb7 {[%clk 0:01:09]} 18. cxd5 {[%clk 0:00:57]}
18... exd5 {[%clk 0:01:09.9]} 19. dxc5 {[%clk 0:00:56.1]} 19... Nxc5 {[%clk
0:01:07.5]} 20. Nd4 {[%clk 0:00:53.8]} 20... Nxd4 {[%clk 0:01:04.2]} 21. Bxd4
{[%clk 0:00:50.5]} 21... Ne6 {[%clk 0:00:58.9]} 22. Bb2 {[%clk 0:00:43.5]} 22...
Rec8 {[%clk 0:00:56.6]} 23. Qf5 {[%clk 0:00:37.6]} 23... Qd7 {[%clk 0:00:50]}
24. Nf3 {[%clk 0:00:30.8]} 24... Nc5 {[%clk 0:00:40.3]} 25. Qg5 {[%clk
0:00:19.5]} 25... Bf8 {[%clk 0:00:38.4]} 26. Ne5 {[%clk 0:00:17.4]} 26... Qe7
{[%clk 0:00:31.3]} 27. Qg3 {[%clk 0:00:16.5]} 27... Ne4 {[%clk 0:00:29.2]} 28.
Qg4 {[%clk 0:00:13.9]} 28... Qe6 {[%clk 0:00:24.7]} 29. Qh5 {[%clk 0:00:12.4]}
29... Nf6 {[%clk 0:00:20.6]} 30. Qh4 {[%clk 0:00:09.9]} 30... Rxc1 {[%clk
0:00:20.1]} 31. Rxc1 {[%clk 0:00:09.3]} 31... Rc8 {[%clk 0:00:20.7]} 32. Rxc8
{[%clk 0:00:08.6]} 32... Bxc8 {[%clk 0:00:21.6]} 33. Ng4 {[%clk 0:00:08.8]}
33... Nxg4 {[%clk 0:00:20.5]} 34. Bxg4 {[%clk 0:00:09.7]} 34... Qc6 {[%clk
0:00:19.6]} 35. Bxc8 {[%clk 0:00:09.5]} 35... Qxc8 {[%clk 0:00:20.5]} 36. Qg5
{[%clk 0:00:09.6]} 36... Qc2 {[%clk 0:00:18.4]} 37. Bd4 {[%clk 0:00:09.7]} 37...
Qxb3 {[%clk 0:00:16.9]} 38. Qd8 {[%clk 0:00:09.9]} 38... Qc4 {[%clk 0:00:14.2]}
39. Be5 {[%clk 0:00:10]} 39... Qc5 {[%clk 0:00:11.9]} 40. Bc7 {[%clk 0:00:09]}
40... b3 {[%clk 0:00:09.5]} 41. Be5 {[%clk 0:00:09]} 41... Qe7 {[%clk
0:00:05.8]} 42. Qb8 {[%clk 0:00:08.3]} 42... Qb4 {[%clk 0:00:05]} 43. Qxb4
{[%clk 0:00:05]} 43... Bxb4 {[%clk 0:00:05.4]} 44. Bd4 {[%clk 0:00:04.5]} 44...
Ba3 {[%clk 0:00:04.8]} 45. Kf1 {[%clk 0:00:03.6]} 45... b2 {[%clk 0:00:05.2]}
0-1

[Event "*** Titled Tuesday Blitz"]
[Site "Chess.com"]
[Date "2021.03.09"]
[Round "10"]
[White "mikolka1985"]
[Black "Pilopa"]
[Result "1/2-1/2"]
[WhiteElo "2690"]
[BlackElo "2576"]
[TimeControl "180+1"]
[EndTime "12:00:04 PST"]
[Termination "Game drawn by repetition"]

1. d4 {[%clk 0:03:00.9]} 1... Nf6 {[%clk 0:02:59.2]} 2. c4 {[%clk 0:03:00.3]}
2... c5 {[%clk 0:02:59.2]} 3. d5 {[%clk 0:02:58.6]} 3... b5 {[%clk 0:02:59.5]}
4. cxb5 {[%clk 0:02:58]} 4... a6 {[%clk 0:03:00.1]} 5. bxa6 {[%clk 0:02:57.9]}
5... g6 {[%clk 0:03:00.6]} 6. Nc3 {[%clk 0:02:58]} 6... Bg7 {[%clk 0:03:01.2]}
7. a7 {[%clk 0:02:57.4]} 7... Rxa7 {[%clk 0:02:59.9]} 8. e4 {[%clk 0:02:57]}
8... O-O {[%clk 0:02:59.9]} 9. Nf3 {[%clk 0:02:57]} 9... d6 {[%clk 0:02:59.5]}
10. Be2 {[%clk 0:02:56.1]} 10... Qa5 {[%clk 0:02:58.2]} 11. O-O {[%clk
0:02:54.3]} 11... Ba6 {[%clk 0:02:58.6]} 12. a4 {[%clk 0:02:50.3]} 12... Rb7
{[%clk 0:02:55.4]} 13. Ra3 {[%clk 0:02:45.8]} 13... Nbd7 {[%clk 0:02:50.4]} 14.
Qc2 {[%clk 0:02:36.3]} 14... Bxe2 {[%clk 0:02:49.2]} 15. Qxe2 {[%clk 0:02:36]}
15... Ra8 {[%clk 0:02:42.6]} 16. Nb5 {[%clk 0:02:35.1]} 16... Ne8 {[%clk
0:02:35.9]} 17. Nd2 {[%clk 0:02:33.3]} 17... Nb6 {[%clk 0:02:26.4]} 18. Nc4
{[%clk 0:02:19.8]} 18... Nxc4 {[%clk 0:02:24.1]} 19. Qxc4 {[%clk 0:02:19.7]}
19... Nc7 {[%clk 0:02:24.6]} 20. Nxc7 {[%clk 0:01:42.7]} 20... Qxc7 {[%clk
0:02:25.5]} 21. b3 {[%clk 0:01:32.5]} 21... Rb4 {[%clk 0:02:07]} 22. Qc2 {[%clk
0:01:32.2]} 22... c4 {[%clk 0:01:59.1]} 23. Bd2 {[%clk 0:01:32]} 23... c3 {[%clk
0:01:58.7]} 24. Be3 {[%clk 0:01:30.2]} 24... Qa5 {[%clk 0:01:48.6]} 25. f3
{[%clk 0:01:27.2]} 25... Rc8 {[%clk 0:01:44.2]} 26. Rd1 {[%clk 0:01:26.3]} 26...
h5 {[%clk 0:01:41.3]} 27. h3 {[%clk 0:01:25.5]} 27... h4 {[%clk 0:01:40.1]} 28.
Raa1 {[%clk 0:01:21]} 28... Rcb8 {[%clk 0:01:32.7]} 29. Rab1 {[%clk 0:01:20.1]}
29... Bf6 {[%clk 0:01:22.4]} 30. Rd3 {[%clk 0:01:18.7]} 30... Rc8 {[%clk
0:01:20.8]} 31. Bf2 {[%clk 0:01:12.4]} 31... Qa6 {[%clk 0:01:19.3]} 32. Be1
{[%clk 0:01:08.2]} 32... Rb7 {[%clk 0:01:10.9]} 33. b4 {[%clk 0:01:07]} 33...
Qc4 {[%clk 0:01:10.2]} 34. b5 {[%clk 0:01:02.8]} 34... Ra8 {[%clk 0:01:09.9]}
35. Bxc3 {[%clk 0:00:51.7]} 35... Rxa4 {[%clk 0:01:09.5]} 36. Rc1 {[%clk
0:00:42.6]} 36... Ra2 {[%clk 0:00:54.3]} 37. Qd1 {[%clk 0:00:37.7]} 37... Bg5
{[%clk 0:00:47.3]} 38. Rb1 {[%clk 0:00:19.8]} 38... Rxb5 {[%clk 0:00:46.8]} 39.
Rxb5 {[%clk 0:00:18.6]} 39... Qxb5 {[%clk 0:00:47.7]} 40. Bd4 {[%clk 0:00:11.5]}
40... Bf4 {[%clk 0:00:29.1]} 41. Rb3 {[%clk 0:00:11]} 41... Qe8 {[%clk
0:00:25.5]} 42. Qb1 {[%clk 0:00:10.1]} 42... Ra8 {[%clk 0:00:25.7]} 43. Rb7
{[%clk 0:00:09.6]} 43... Kh7 {[%clk 0:00:22.3]} 44. Qb5 {[%clk 0:00:08.8]} 44...
Qxb5 {[%clk 0:00:20.6]} 45. Rxb5 {[%clk 0:00:08.4]} 45... Bg3 {[%clk 0:00:21.5]}
46. Kf1 {[%clk 0:00:07.7]} 46... Ra2 {[%clk 0:00:18]} 47. Rb7 {[%clk 0:00:07]}
47... Rd2 {[%clk 0:00:16.5]} 48. Be3 {[%clk 0:00:04.9]} 48... Rd1+ {[%clk
0:00:14.9]} 49. Ke2 {[%clk 0:00:05.6]} 49... Re1+ {[%clk 0:00:15.3]} 50. Kd3
{[%clk 0:00:06]} 50... Rd1+ {[%clk 0:00:15.1]} 51. Ke2 {[%clk 0:00:06.4]} 51...
Re1+ {[%clk 0:00:15.2]} 52. Kd3 {[%clk 0:00:06.8]} 52... Rd1+ {[%clk 0:00:15.5]}
53. Kc2 {[%clk 0:00:07.2]} 53... Re1 {[%clk 0:00:14]} 54. Kd3 {[%clk 0:00:07]}
1/2-1/2

[Event "*** Titled Tuesday Blitz"]
[Site "Chess.com"]
[Date "2021.03.09"]
[Round "10"]
[White "SilviusTiberius"]
[Black "NikolaGry"]
[Result "0-1"]
[WhiteElo "2518"]
[BlackElo "2669"]
[TimeControl "180+1"]
[EndTime "12:00:06 PST"]
[Termination "NikolaGry won by checkmate"]

1. e4 {[%clk 0:03:00.9]} 1... d6 {[%clk 0:02:58.8]} 2. d4 {[%clk 0:03:00.7]}
2... Nf6 {[%clk 0:02:59.5]} 3. Nc3 {[%clk 0:03:01.2]} 3... g6 {[%clk 0:03:00.1]}
4. Bf4 {[%clk 0:03:01.6]} 4... Nc6 {[%clk 0:02:55.5]} 5. Nge2 {[%clk 0:02:29.1]}
5... Bg7 {[%clk 0:02:54.4]} 6. Qd2 {[%clk 0:02:28.6]} 6... h6 {[%clk 0:02:49.6]}
7. O-O-O {[%clk 0:02:24.2]} 7... g5 {[%clk 0:02:49.4]} 8. Bg3 {[%clk 0:02:21.3]}
8... Nh5 {[%clk 0:02:49.4]} 9. d5 {[%clk 0:02:14.6]} 9... Ne5 {[%clk 0:02:43.8]}
10. Nd4 {[%clk 0:02:09.3]} 10... c5 {[%clk 0:02:27.2]} 11. Bb5+ {[%clk
0:01:58.2]} 11... Kf8 {[%clk 0:02:25.9]} 12. Nf5 {[%clk 0:01:55.6]} 12... Bxf5
{[%clk 0:02:16.7]} 13. exf5 {[%clk 0:01:56.5]} 13... Qa5 {[%clk 0:02:10.3]} 14.
Be2 {[%clk 0:01:53]} 14... Nxg3 {[%clk 0:02:07]} 15. hxg3 {[%clk 0:01:53.9]}
15... b5 {[%clk 0:01:56]} 16. Bxb5 {[%clk 0:01:46]} 16... Rb8 {[%clk 0:01:52.2]}
17. f4 {[%clk 0:01:35.2]} 17... Ng4 {[%clk 0:01:26.8]} 18. Qe2 {[%clk
0:00:58.4]} 18... Bxc3 {[%clk 0:01:08.4]} 19. bxc3 {[%clk 0:00:58.8]} 19... Rxb5
{[%clk 0:00:53.8]} 20. Qxg4 {[%clk 0:00:52.5]} 20... Qxc3 {[%clk 0:00:50.2]} 21.
Qf3 {[%clk 0:00:48.6]} 21... Qxf3 {[%clk 0:00:42.6]} 22. gxf3 {[%clk 0:00:49.5]}
22... gxf4 {[%clk 0:00:41.8]} 23. g4 {[%clk 0:00:49]} 23... Kg7 {[%clk
0:00:32.6]} 24. Rd3 {[%clk 0:00:48.4]} 24... Rhb8 {[%clk 0:00:30.2]} 25. Kd2
{[%clk 0:00:48.4]} 25... Rb4 {[%clk 0:00:27.3]} 26. Re1 {[%clk 0:00:47.8]} 26...
R8b7 {[%clk 0:00:27]} 27. Ra3 {[%clk 0:00:45.5]} 27... Rd4+ {[%clk 0:00:26.8]}
28. Kc1 {[%clk 0:00:45.3]} 28... Rxd5 {[%clk 0:00:26]} 29. Rb3 {[%clk
0:00:42.8]} 29... Rxb3 {[%clk 0:00:23.9]} 30. axb3 {[%clk 0:00:43.4]} 30... Re5
{[%clk 0:00:23.7]} 31. Rd1 {[%clk 0:00:39.4]} 31... h5 {[%clk 0:00:23.4]} 32.
Rg1 {[%clk 0:00:34.9]} 32... Kf6 {[%clk 0:00:17.8]} 33. gxh5 {[%clk 0:00:34.4]}
33... Rxf5 {[%clk 0:00:17.8]} 34. Rh1 {[%clk 0:00:32.8]} 34... Kg7 {[%clk
0:00:16.6]} 35. Kd2 {[%clk 0:00:33.2]} 35... Kh6 {[%clk 0:00:16.3]} 36. Kd3
{[%clk 0:00:33.7]} 36... Rxh5 {[%clk 0:00:14.8]} 37. Re1 {[%clk 0:00:34.2]}
37... Re5 {[%clk 0:00:14.1]} 38. Ra1 {[%clk 0:00:34.3]} 38... d5 {[%clk
0:00:12.2]} 39. Rxa7 {[%clk 0:00:33.1]} 39... Re3+ {[%clk 0:00:12.3]} 40. Kd2
{[%clk 0:00:33.3]} 40... f5 {[%clk 0:00:10.5]} 41. Rc7 {[%clk 0:00:33.5]} 41...
e6 {[%clk 0:00:09.6]} 42. Rxc5 {[%clk 0:00:32.9]} 42... Rxf3 {[%clk 0:00:09.7]}
43. Rc6 {[%clk 0:00:33.1]} 43... Re3 {[%clk 0:00:07.5]} 44. b4 {[%clk
0:00:33.5]} 44... Kg5 {[%clk 0:00:07]} 45. b5 {[%clk 0:00:33.9]} 45... Re4
{[%clk 0:00:05.8]} 46. c3 {[%clk 0:00:32.4]} 46... f3 {[%clk 0:00:05.2]} 47. Ra6
{[%clk 0:00:24.8]} 47... f2 {[%clk 0:00:04.9]} 48. Ra1 {[%clk 0:00:25.3]} 48...
Kf4 {[%clk 0:00:05.1]} 49. b6 {[%clk 0:00:25.1]} 49... Kf3 {[%clk 0:00:02.5]}
50. b7 {[%clk 0:00:24.4]} 50... Re2+ {[%clk 0:00:02.7]} 51. Kd3 {[%clk
0:00:20.6]} 51... Re1 {[%clk 0:00:02.9]} 52. b8=Q {[%clk 0:00:16.4]} 52... f1=Q+
{[%clk 0:00:03.1]} 53. Kd4 {[%clk 0:00:16.2]} 53... Qc4# {[%clk 0:00:02.8]} 0-1

[Event "*** Titled Tuesday Blitz"]
[Site "Chess.com"]
[Date "2021.03.09"]
[Round "10"]
[White "NoGalloNoParty"]
[Black "witcher8"]
[Result "1-0"]
[WhiteElo "2344"]
[BlackElo "2445"]
[TimeControl "180+1"]
[EndTime "12:00:08 PST"]
[Termination "NoGalloNoParty won on time"]

1. d4 {[%clk 0:03:00.9]} 1... Nf6 {[%clk 0:02:59.4]} 2. Nf3 {[%clk 0:03:01.1]}
2... g6 {[%clk 0:02:59.5]} 3. c4 {[%clk 0:03:01.7]} 3... Bg7 {[%clk 0:02:59.7]}
4. Nc3 {[%clk 0:03:02.4]} 4... O-O {[%clk 0:02:59.3]} 5. e4 {[%clk 0:03:02.6]}
5... d6 {[%clk 0:02:59.7]} 6. Be2 {[%clk 0:03:02.7]} 6... e5 {[%clk 0:03:00.2]}
7. Be3 {[%clk 0:03:02.2]} 7... Ng4 {[%clk 0:02:51.3]} 8. Bg5 {[%clk 0:03:01.6]}
8... f6 {[%clk 0:02:51.2]} 9. Bh4 {[%clk 0:03:01.8]} 9... Nc6 {[%clk 0:02:50.6]}
10. d5 {[%clk 0:02:59.5]} 10... Ne7 {[%clk 0:02:51.2]} 11. h3 {[%clk 0:02:57.2]}
11... Nh6 {[%clk 0:02:37.5]} 12. g4 {[%clk 0:02:55.9]} 12... Nf7 {[%clk
0:02:14.9]} 13. Nd2 {[%clk 0:02:29.3]} 13... c6 {[%clk 0:02:14.1]} 14. Qc2
{[%clk 0:02:17.1]} 14... b5 {[%clk 0:02:03.8]} 15. dxc6 {[%clk 0:02:10.6]} 15...
Nxc6 {[%clk 0:01:57.5]} 16. Nxb5 {[%clk 0:02:02.2]} 16... a6 {[%clk 0:01:56.4]}
17. Nc3 {[%clk 0:02:01.7]} 17... Nd4 {[%clk 0:01:56.7]} 18. Qd3 {[%clk
0:02:01.1]} 18... Rb8 {[%clk 0:01:44.6]} 19. b3 {[%clk 0:01:48]} 19... Qa5
{[%clk 0:01:20.4]} 20. Nf3 {[%clk 0:01:41.5]} 20... Nxb3 {[%clk 0:01:10.2]} 21.
Rd1 {[%clk 0:01:20.8]} 21... Nc5 {[%clk 0:01:03.1]} 22. Qd2 {[%clk 0:01:12.1]}
22... Bh6 {[%clk 0:00:59.9]} 23. Qc2 {[%clk 0:01:04.7]} 23... Nxe4 {[%clk
0:00:46.1]} 24. Qxe4 {[%clk 0:01:03.8]} 24... Qxc3+ {[%clk 0:00:45.9]} 25. Kf1
{[%clk 0:01:04.2]} 25... Bb7 {[%clk 0:00:43.6]} 26. Qd3 {[%clk 0:00:59.2]} 26...
Qxd3 {[%clk 0:00:41.6]} 27. Rxd3 {[%clk 0:00:54.2]} 27... e4 {[%clk 0:00:41.8]}
28. Rb3 {[%clk 0:00:44.5]} 28... exf3 {[%clk 0:00:40.9]} 29. Bxf3 {[%clk
0:00:44.9]} 29... Bxf3 {[%clk 0:00:39.7]} 30. Rxf3 {[%clk 0:00:45.8]} 30... Ne5
{[%clk 0:00:28.8]} 31. Rxf6 {[%clk 0:00:44.2]} 31... Rxf6 {[%clk 0:00:26.9]} 32.
Bxf6 {[%clk 0:00:44.5]} 32... Rb1+ {[%clk 0:00:27.5]} 33. Kg2 {[%clk 0:00:44.2]}
33... Rxh1 {[%clk 0:00:27.2]} 34. Kxh1 {[%clk 0:00:44.4]} 34... Nxc4 {[%clk
0:00:27.8]} 35. Kg2 {[%clk 0:00:44.1]} 35... Bg7 {[%clk 0:00:24.8]} 36. Bd8
{[%clk 0:00:43.3]} 36... Kf7 {[%clk 0:00:23.7]} 37. f4 {[%clk 0:00:42.6]} 37...
Ke6 {[%clk 0:00:21.7]} 38. Kf3 {[%clk 0:00:42.9]} 38... d5 {[%clk 0:00:20.3]}
39. h4 {[%clk 0:00:41.7]} 39... h5 {[%clk 0:00:19.6]} 40. f5+ {[%clk 0:00:40.3]}
40... gxf5 {[%clk 0:00:18.6]} 41. gxh5 {[%clk 0:00:41.2]} 41... Bf6 {[%clk
0:00:17.7]} 42. Bc7 {[%clk 0:00:30.2]} 42... Bxh4 {[%clk 0:00:17.7]} 43. Kf4
{[%clk 0:00:27.9]} 43... Kf6 {[%clk 0:00:17.3]} 44. Bd8+ {[%clk 0:00:25.8]}
44... Kg7 {[%clk 0:00:11.8]} 45. Bxh4 {[%clk 0:00:26.7]} 45... Kh6 {[%clk
0:00:09.8]} 46. Kxf5 {[%clk 0:00:26.2]} 46... Kxh5 {[%clk 0:00:10.2]} 47. Bf2
{[%clk 0:00:25.4]} 47... Kh6 {[%clk 0:00:09.9]} 48. Ke6 {[%clk 0:00:25.4]} 48...
Kg7 {[%clk 0:00:07.6]} 49. Kxd5 {[%clk 0:00:25.3]} 49... Nb2 {[%clk 0:00:07.2]}
50. Bd4+ {[%clk 0:00:24.3]} 50... Kf7 {[%clk 0:00:07.8]} 51. Bxb2 {[%clk
0:00:24.7]} 51... Ke7 {[%clk 0:00:08.7]} 52. Kc6 {[%clk 0:00:24.1]} 52... a5
{[%clk 0:00:09.3]} 53. a4 {[%clk 0:00:22.4]} 53... Kd8 {[%clk 0:00:09.7]} 54.
Be5 {[%clk 0:00:22.2]} 54... Kc8 {[%clk 0:00:09.8]} 55. Bd6 {[%clk 0:00:21.6]}
55... Kd8 {[%clk 0:00:09.8]} 56. Kb7 {[%clk 0:00:21.7]} 56... Kd7 {[%clk
0:00:10]} 57. Bc7 {[%clk 0:00:21.7]} 1-0

[Event "*** Titled Tuesday Blitz"]
[Site "Chess.com"]
[Date "2021.03.09"]
[Round "10"]
[White "dropstoneDP"]
[Black "elextranjero00"]
[Result "1/2-1/2"]
[WhiteElo "2885"]
[BlackElo "2668"]
[TimeControl "180+1"]
[EndTime "12:00:09 PST"]
[Termination "Game drawn by stalemate"]

1. d4 {[%clk 0:02:56.5]} 1... Nf6 {[%clk 0:02:59.2]} 2. c4 {[%clk 0:02:56.3]}
2... e6 {[%clk 0:02:59.5]} 3. Nc3 {[%clk 0:02:56.2]} 3... Bb4 {[%clk 0:02:58.7]}
4. Qc2 {[%clk 0:02:54.2]} 4... d6 {[%clk 0:02:56.6]} 5. a3 {[%clk 0:02:54.4]}
5... Bxc3+ {[%clk 0:02:53.9]} 6. Qxc3 {[%clk 0:02:55.3]} 6... O-O {[%clk
0:02:51.9]} 7. Nf3 {[%clk 0:02:48.5]} 7... Re8 {[%clk 0:02:44.6]} 8. g3 {[%clk
0:02:47.8]} 8... Nc6 {[%clk 0:02:43.1]} 9. Bg2 {[%clk 0:02:47.6]} 9... e5 {[%clk
0:02:43.5]} 10. dxe5 {[%clk 0:02:47.7]} 10... dxe5 {[%clk 0:02:43.4]} 11. Bg5
{[%clk 0:02:37.5]} 11... h6 {[%clk 0:02:40.4]} 12. Bxf6 {[%clk 0:02:37.8]} 12...
Qxf6 {[%clk 0:02:40.4]} 13. O-O {[%clk 0:02:37.2]} 13... Nd4 {[%clk 0:02:23.7]}
14. Rfe1 {[%clk 0:02:31]} 14... Bg4 {[%clk 0:02:21.5]} 15. h3 {[%clk 0:02:27.5]}
15... Bxf3 {[%clk 0:02:19.9]} 16. exf3 {[%clk 0:02:27]} 16... c5 {[%clk
0:02:13.5]} 17. Re4 {[%clk 0:02:22.8]} 17... Rad8 {[%clk 0:02:04.5]} 18. Rae1
{[%clk 0:02:22.7]} 18... Re6 {[%clk 0:02:04.6]} 19. b4 {[%clk 0:02:21.2]} 19...
Qe7 {[%clk 0:01:58.4]} 20. f4 {[%clk 0:02:20.2]} 20... exf4 {[%clk 0:01:54.3]}
21. Rxe6 {[%clk 0:02:07.9]} 21... Nxe6 {[%clk 0:01:30.1]} 22. Bd5 {[%clk
0:02:01.3]} 22... fxg3 {[%clk 0:01:27.9]} 23. Qxg3 {[%clk 0:01:46.8]} 23... cxb4
{[%clk 0:01:18.4]} 24. axb4 {[%clk 0:01:39.2]} 24... Qxb4 {[%clk 0:01:14.9]} 25.
Re4 {[%clk 0:01:38.1]} 25... Rxd5 {[%clk 0:01:07.8]} 26. cxd5 {[%clk 0:01:29.2]}
26... Qxe4 {[%clk 0:01:07.6]} 27. dxe6 {[%clk 0:01:29.5]} 27... Qxe6 {[%clk
0:01:07.9]} 28. Qb8+ {[%clk 0:01:29.7]} 28... Kh7 {[%clk 0:01:08.2]} 29. Qxb7
{[%clk 0:01:19.5]} 29... a5 {[%clk 0:01:00.7]} 30. Qb5 {[%clk 0:01:19.6]} 30...
Qxh3 {[%clk 0:00:51.9]} 31. Qxa5 {[%clk 0:01:19.3]} 31... Qg4+ {[%clk
0:00:51.3]} 32. Kf1 {[%clk 0:01:19.6]} 32... f5 {[%clk 0:00:48.8]} 33. Qd5
{[%clk 0:01:11.5]} 33... Qe4 {[%clk 0:00:47.9]} 34. Qf7 {[%clk 0:01:11.2]} 34...
Qg4 {[%clk 0:00:42.9]} 35. Qd5 {[%clk 0:01:07]} 35... h5 {[%clk 0:00:41.4]} 36.
f3 {[%clk 0:01:05.1]} 36... Qg5 {[%clk 0:00:37.6]} 37. Qe5 {[%clk 0:00:41.5]}
37... h4 {[%clk 0:00:36.5]} 38. Kf2 {[%clk 0:00:40.9]} 38... Kh6 {[%clk
0:00:23.9]} 39. Qe6+ {[%clk 0:00:38.5]} 39... g6 {[%clk 0:00:22]} 40. Qe5 {[%clk
0:00:33]} 40... Qg3+ {[%clk 0:00:14.9]} 41. Qxg3 {[%clk 0:00:33.3]} 41... hxg3+
{[%clk 0:00:15.8]} 42. Kxg3 {[%clk 0:00:34.2]} 42... g5 {[%clk 0:00:16.2]} 43.
Kh2 {[%clk 0:00:30.6]} 43... Kg7 {[%clk 0:00:15.4]} 44. Kg1 {[%clk 0:00:28.4]}
44... Kf6 {[%clk 0:00:13.1]} 45. Kf2 {[%clk 0:00:28.6]} 45... Ke5 {[%clk
0:00:12.5]} 46. Ke3 {[%clk 0:00:29.1]} 46... Kd5 {[%clk 0:00:09.8]} 47. Kd3
{[%clk 0:00:29.5]} 47... Ke5 {[%clk 0:00:10.1]} 48. Ke3 {[%clk 0:00:29.9]} 48...
f4+ {[%clk 0:00:09.7]} 49. Ke2 {[%clk 0:00:12.3]} 49... Kf5 {[%clk 0:00:09.2]}
50. Kf1 {[%clk 0:00:10.9]} 50... Ke6 {[%clk 0:00:06.1]} 51. Ke2 {[%clk
0:00:10.8]} 51... Kf5 {[%clk 0:00:05.5]} 52. Kf1 {[%clk 0:00:10.7]} 52... g4
{[%clk 0:00:05.8]} 53. fxg4+ {[%clk 0:00:10.6]} 53... Kxg4 {[%clk 0:00:06.4]}
54. Kg2 {[%clk 0:00:11]} 54... f3+ {[%clk 0:00:07.3]} 55. Kf2 {[%clk 0:00:11.3]}
55... Kf4 {[%clk 0:00:08.2]} 56. Kf1 {[%clk 0:00:11.7]} 56... Kg3 {[%clk
0:00:08.8]} 57. Kg1 {[%clk 0:00:12.2]} 57... f2+ {[%clk 0:00:09.7]} 58. Kf1
{[%clk 0:00:12.8]} 58... Kf3 {[%clk 0:00:10.6]} 1/2-1/2

[Event "*** Titled Tuesday Blitz"]
[Site "Chess.com"]
[Date "2021.03.09"]
[Round "10"]
[White "AntonovaNadezhda"]
[Black "yonaltimur"]
[Result "1-0"]
[WhiteElo "2131"]
[BlackElo "1811"]
[TimeControl "180+1"]
[EndTime "12:00:12 PST"]
[Termination "AntonovaNadezhda won on time"]

1. d4 {[%clk 0:02:59.8]} 1... d5 {[%clk 0:02:56.5]} 2. Nf3 {[%clk 0:02:59.4]}
2... Nf6 {[%clk 0:02:54]} 3. e3 {[%clk 0:02:59.5]} 3... e6 {[%clk 0:02:46.6]} 4.
Nbd2 {[%clk 0:02:59]} 4... c5 {[%clk 0:02:44.6]} 5. b3 {[%clk 0:02:55.4]} 5...
cxd4 {[%clk 0:02:29.3]} 6. exd4 {[%clk 0:02:54.6]} 6... Bd6 {[%clk 0:02:27.5]}
7. Bb2 {[%clk 0:02:54.2]} 7... Nc6 {[%clk 0:02:26.3]} 8. Bd3 {[%clk 0:02:53.7]}
8... O-O {[%clk 0:02:25.6]} 9. a3 {[%clk 0:02:53.6]} 9... h6 {[%clk 0:02:23]}
10. O-O {[%clk 0:02:52.9]} 10... Re8 {[%clk 0:02:23]} 11. Ne5 {[%clk 0:02:52.1]}
11... Nd7 {[%clk 0:02:10.4]} 12. f4 {[%clk 0:02:20.6]} 12... f5 {[%clk
0:02:05.1]} 13. Nxd7 {[%clk 0:02:06.3]} 13... Bxd7 {[%clk 0:02:02.7]} 14. Qe2
{[%clk 0:01:57.6]} 14... Qf6 {[%clk 0:01:59.8]} 15. Qf2 {[%clk 0:01:48.3]} 15...
Bf8 {[%clk 0:01:58.9]} 16. Rae1 {[%clk 0:01:44.3]} 16... Rac8 {[%clk 0:01:57.7]}
17. Nf3 {[%clk 0:01:43.3]} 17... a6 {[%clk 0:01:54]} 18. c4 {[%clk 0:01:34.4]}
18... Qf7 {[%clk 0:01:39.4]} 19. c5 {[%clk 0:01:27.4]} 19... Rb8 {[%clk
0:01:30.1]} 20. b4 {[%clk 0:01:17.5]} 20... b5 {[%clk 0:01:17.5]} 21. Bc3 {[%clk
0:00:46.7]} 21... Be7 {[%clk 0:01:01.7]} 22. Re2 {[%clk 0:00:28.8]} 22... Bf8
{[%clk 0:01:01.6]} 23. Ne5 {[%clk 0:00:25.3]} 23... Nxe5 {[%clk 0:00:59.2]} 24.
fxe5 {[%clk 0:00:24.5]} 24... g5 {[%clk 0:00:48.8]} 25. g4 {[%clk 0:00:19.7]}
25... f4 {[%clk 0:00:46.7]} 26. Qf3 {[%clk 0:00:19.5]} 26... Bc6 {[%clk
0:00:37.3]} 27. Rg2 {[%clk 0:00:18.3]} 27... Re7 {[%clk 0:00:34.5]} 28. h4
{[%clk 0:00:16.3]} 28... Rbb7 {[%clk 0:00:31.1]} 29. Bc2 {[%clk 0:00:15.2]}
29... Qe8 {[%clk 0:00:28.7]} 30. Kf2 {[%clk 0:00:14.9]} 30... Rg7 {[%clk
0:00:21.6]} 31. hxg5 {[%clk 0:00:12.9]} 31... hxg5 {[%clk 0:00:20]} 32. Rh1
{[%clk 0:00:12.3]} 32... Kf7 {[%clk 0:00:18.4]} 33. Rgh2 {[%clk 0:00:12.5]}
33... Ke7 {[%clk 0:00:17.9]} 34. Rh8 {[%clk 0:00:10.9]} 34... Kd8 {[%clk
0:00:18]} 35. Qd3 {[%clk 0:00:10]} 35... Rbf7 {[%clk 0:00:17.7]} 36. Kf3 {[%clk
0:00:09.8]} 36... Kc7 {[%clk 0:00:16.8]} 37. Qd2 {[%clk 0:00:08.2]} 37... Qe7
{[%clk 0:00:14.4]} 38. Bd3 {[%clk 0:00:07.3]} 38... Kb7 {[%clk 0:00:12.6]} 39.
Bc2 {[%clk 0:00:07.4]} 39... Kc7 {[%clk 0:00:10.7]} 40. Qd1 {[%clk 0:00:07.4]}
40... Kb7 {[%clk 0:00:09.6]} 41. a4 {[%clk 0:00:07.5]} 41... Kc7 {[%clk
0:00:08.4]} 42. axb5 {[%clk 0:00:07.5]} 42... axb5 {[%clk 0:00:06.9]} 43. Bd3
{[%clk 0:00:06.3]} 43... Kb7 {[%clk 0:00:03.9]} 44. Qa1 {[%clk 0:00:05.7]} 44...
Qd7 {[%clk 0:00:03.1]} 45. R8h2 {[%clk 0:00:05.6]} 1-0